[Event "*** Titled Tuesday Blitz"]
[Site "Chess.com"]
[Date "2021.02.16"]
[Round "1"]
[White "Fiona"]
[Black "Nastya_Rakhmangulova"]
[Result "1-0"]
[WhiteElo "2135"]
[BlackElo "2488"]
[TimeControl "180+1"]
[EndTime "10:07:35 PST"]
[Termination "Fiona won on time"]

1. e4 {[%clk 0:03:00.9]} 1... e6 {[%clk 0:02:59.8]} 2. Nf3 {[%clk 0:02:59.9]}
2... d5 {[%clk 0:02:55.6]} 3. e5 {[%clk 0:03:00.1]} 3... c5 {[%clk 0:02:54.9]}
4. b4 {[%clk 0:02:59.6]} 4... b6 {[%clk 0:02:49.2]} 5. c3 {[%clk 0:02:49.4]}
5... Nd7 {[%clk 0:02:30]} 6. bxc5 {[%clk 0:02:45.2]} 6... bxc5 {[%clk
0:02:30.1]} 7. d4 {[%clk 0:02:44.5]} 7... Qa5 {[%clk 0:02:22.2]} 8. Bd2 {[%clk
0:02:34.8]} 8... c4 {[%clk 0:02:22]} 9. Be2 {[%clk 0:02:25.6]} 9... Be7 {[%clk
0:02:15.9]} 10. O-O {[%clk 0:02:25.1]} 10... f6 {[%clk 0:02:14.6]} 11. exf6
{[%clk 0:02:17.7]} 11... Ngxf6 {[%clk 0:02:14.3]} 12. Ng5 {[%clk 0:01:59.7]}
12... Nb6 {[%clk 0:02:13]} 13. Bh5+ {[%clk 0:01:43.1]} 13... g6 {[%clk
0:02:10.8]} 14. Bg4 {[%clk 0:01:43.3]} 14... Nxg4 {[%clk 0:01:50.2]} 15. Qxg4
{[%clk 0:01:44.2]} 15... O-O {[%clk 0:01:50.5]} 16. Qh3 {[%clk 0:01:05.2]} 16...
Bxg5 {[%clk 0:01:31.9]} 17. Bxg5 {[%clk 0:01:06.1]} 17... e5 {[%clk 0:01:32.6]}
18. Qh4 {[%clk 0:00:58.6]} 18... e4 {[%clk 0:01:29]} 19. Bh6 {[%clk 0:00:40]}
19... Bf5 {[%clk 0:01:11.6]} 20. Qg3 {[%clk 0:00:37.3]} 20... Rf7 {[%clk
0:01:03.6]} 21. Nd2 {[%clk 0:00:35.6]} 21... Na4 {[%clk 0:01:00.8]} 22. Rfc1
{[%clk 0:00:34.9]} 22... Qc7 {[%clk 0:00:58]} 23. Qh4 {[%clk 0:00:31.4]} 23...
Qe7 {[%clk 0:00:44.7]} 24. Qg3 {[%clk 0:00:30.3]} 24... Qc7 {[%clk 0:00:32.1]}
25. Qh4 {[%clk 0:00:30]} 25... Rb8 {[%clk 0:00:31.8]} 26. Nf1 {[%clk 0:00:22.1]}
26... Rb2 {[%clk 0:00:28.9]} 27. Ne3 {[%clk 0:00:20.2]} 27... Be6 {[%clk
0:00:26.8]} 28. Rf1 {[%clk 0:00:17.9]} 28... Nxc3 {[%clk 0:00:22]} 29. Ng4
{[%clk 0:00:17.2]} 29... Ne2+ {[%clk 0:00:16.8]} 30. Kh1 {[%clk 0:00:17.5]}
30... Bxg4 {[%clk 0:00:14.8]} 31. Qxg4 {[%clk 0:00:18.4]} 31... Nxd4 {[%clk
0:00:14.2]} 32. Rab1 {[%clk 0:00:17.9]} 32... Rxb1 {[%clk 0:00:08.8]} 33. Rxb1
{[%clk 0:00:18.8]} 33... Nf5 {[%clk 0:00:09.6]} 34. Qg5 {[%clk 0:00:15]} 34...
Nxh6 {[%clk 0:00:08.1]} 35. Qxh6 {[%clk 0:00:15.2]} 35... Qc8 {[%clk 0:00:07.3]}
36. Qd2 {[%clk 0:00:14.4]} 36... Qd8 {[%clk 0:00:03.4]} 37. h3 {[%clk
0:00:14.6]} 37... Rc7 {[%clk 0:00:02.3]} 38. Rb5 {[%clk 0:00:14.3]} 38... d4
{[%clk 0:00:01.8]} 39. Qa5 {[%clk 0:00:05.8]} 39... d3 {[%clk 0:00:01.9]} 40.
Rd5 {[%clk 0:00:06.1]} 1-0

[Event "*** Titled Tuesday Blitz"]
[Site "Chess.com"]
[Date "2021.02.16"]
[Round "1"]
[White "adriangschnitzer"]
[Black "ObligatePawnivore"]
[Result "1-0"]
[WhiteElo "2475"]
[BlackElo "1740"]
[TimeControl "180+1"]
[EndTime "10:07:36 PST"]
[Termination "adriangschnitzer won on time"]

1. e4 {[%clk 0:02:58.6]} 1... e6 {[%clk 0:02:59.4]} 2. d4 {[%clk 0:02:58.4]}
2... d5 {[%clk 0:02:59.8]} 3. Nd2 {[%clk 0:02:58.5]} 3... Be7 {[%clk 0:02:58.8]}
4. Bd3 {[%clk 0:02:56.6]} 4... c5 {[%clk 0:02:57.8]} 5. dxc5 {[%clk 0:02:57]}
5... Nf6 {[%clk 0:02:55.4]} 6. e5 {[%clk 0:02:56.3]} 6... Nfd7 {[%clk
0:02:54.1]} 7. Ngf3 {[%clk 0:02:56]} 7... Nxc5 {[%clk 0:02:53]} 8. O-O {[%clk
0:02:55.4]} 8... Nc6 {[%clk 0:02:51.1]} 9. Nb3 {[%clk 0:02:55.2]} 9... Nxd3
{[%clk 0:02:48.3]} 10. Qxd3 {[%clk 0:02:55.3]} 10... O-O {[%clk 0:02:38.4]} 11.
Re1 {[%clk 0:02:53.6]} 11... f6 {[%clk 0:02:38.1]} 12. c3 {[%clk 0:02:50.9]}
12... fxe5 {[%clk 0:02:29]} 13. Nxe5 {[%clk 0:02:51.8]} 13... Bd6 {[%clk
0:02:22.8]} 14. f4 {[%clk 0:02:44.2]} 14... Qf6 {[%clk 0:02:08.3]} 15. Nxc6
{[%clk 0:02:32.4]} 15... bxc6 {[%clk 0:02:09.2]} 16. g3 {[%clk 0:02:31.6]} 16...
e5 {[%clk 0:02:03.2]} 17. Rf1 {[%clk 0:02:22.8]} 17... Kh8 {[%clk 0:01:32.6]}
18. Be3 {[%clk 0:01:57.7]} 18... e4 {[%clk 0:01:24.1]} 19. Qd4 {[%clk
0:01:52.9]} 19... Bh3 {[%clk 0:01:21.2]} 20. Qxf6 {[%clk 0:01:45.6]} 20... gxf6
{[%clk 0:01:20]} 21. Rfd1 {[%clk 0:01:40.8]} 21... Rfb8 {[%clk 0:01:19.7]} 22.
Rd2 {[%clk 0:01:35.8]} 22... a5 {[%clk 0:01:17.5]} 23. Bc5 {[%clk 0:01:22.4]}
23... Bc7 {[%clk 0:00:56.7]} 24. Kf2 {[%clk 0:01:19.8]} 24... Rb5 {[%clk
0:00:46.9]} 25. Bd4 {[%clk 0:01:13.6]} 25... Rab8 {[%clk 0:00:45.8]} 26. Bxf6+
{[%clk 0:01:12.2]} 26... Kg8 {[%clk 0:00:44.5]} 27. g4 {[%clk 0:00:54.5]} 27...
h5 {[%clk 0:00:34.3]} 28. gxh5 {[%clk 0:00:51.9]} 28... Bxf4 {[%clk 0:00:24]}
29. Rg1+ {[%clk 0:00:49.7]} 29... Kf7 {[%clk 0:00:22.2]} 30. Bg5 {[%clk
0:00:33.8]} 30... Bxd2 {[%clk 0:00:19.7]} 31. Bxd2 {[%clk 0:00:34.7]} 31... a4
{[%clk 0:00:18.2]} 32. Nd4 {[%clk 0:00:35.1]} 32... Rxb2 {[%clk 0:00:17.7]} 33.
Ke3 {[%clk 0:00:35.6]} 33... Rxa2 {[%clk 0:00:14.8]} 34. h6 {[%clk 0:00:35.2]}
34... Rh8 {[%clk 0:00:11]} 35. Rg7+ {[%clk 0:00:30.8]} 35... Kf6 {[%clk
0:00:09]} 36. Rc7 {[%clk 0:00:27.2]} 36... Rxd2 {[%clk 0:00:04.9]} 37. Rxc6+
{[%clk 0:00:21.3]} 37... Kg5 {[%clk 0:00:04.5]} 38. Kxd2 {[%clk 0:00:20.4]}
38... Rxh6 {[%clk 0:00:04.7]} 39. Rc5 {[%clk 0:00:19]} 39... Kf4 {[%clk
0:00:02.6]} 40. Rxd5 {[%clk 0:00:18]} 40... e3+ {[%clk 0:00:02.8]} 41. Kd3
{[%clk 0:00:14.7]} 41... Bf1+ {[%clk 0:00:02.4]} 42. Ne2+ {[%clk 0:00:14.9]} 1-0

[Event "*** Titled Tuesday Blitz"]
[Site "Chess.com"]
[Date "2021.02.16"]
[Round "1"]
[White "Smirnov_Pavel"]
[Black "SARGISMV"]
[Result "1-0"]
[WhiteElo "2901"]
[BlackElo "2443"]
[TimeControl "180+1"]
[EndTime "10:07:38 PST"]
[Termination "Smirnov_Pavel won on time"]

1. d4 {[%clk 0:02:59.6]} 1... e6 {[%clk 0:02:57.6]} 2. Nf3 {[%clk 0:02:58.2]}
2... Nf6 {[%clk 0:02:56.2]} 3. c4 {[%clk 0:02:56.7]} 3... c5 {[%clk 0:02:55.9]}
4. g3 {[%clk 0:02:56.2]} 4... cxd4 {[%clk 0:02:55.2]} 5. Nxd4 {[%clk 0:02:57.1]}
5... d5 {[%clk 0:02:56]} 6. Bg2 {[%clk 0:02:57.2]} 6... e5 {[%clk 0:02:56.1]} 7.
Nf3 {[%clk 0:02:57.2]} 7... d4 {[%clk 0:02:56.3]} 8. O-O {[%clk 0:02:57.2]} 8...
Nc6 {[%clk 0:02:51.4]} 9. e3 {[%clk 0:02:57.1]} 9... Be7 {[%clk 0:02:49.8]} 10.
exd4 {[%clk 0:02:57.3]} 10... exd4 {[%clk 0:02:50.7]} 11. Bf4 {[%clk 0:02:57.2]}
11... O-O {[%clk 0:02:47.4]} 12. Ne5 {[%clk 0:02:57.3]} 12... Qb6 {[%clk
0:02:37.7]} 13. Re1 {[%clk 0:02:55.8]} 13... Bb4 {[%clk 0:02:34.8]} 14. Nd2
{[%clk 0:02:45]} 14... Bf5 {[%clk 0:02:24.5]} 15. a3 {[%clk 0:02:39.7]} 15...
Bxd2 {[%clk 0:02:10.8]} 16. Qxd2 {[%clk 0:02:40.6]} 16... a5 {[%clk 0:01:52.3]}
17. Nxc6 {[%clk 0:02:32.3]} 17... bxc6 {[%clk 0:01:52.1]} 18. Bd6 {[%clk
0:02:32.9]} 18... c5 {[%clk 0:01:19.7]} 19. Bxf8 {[%clk 0:02:29.6]} 19... Rxf8
{[%clk 0:01:20.6]} 20. Re5 {[%clk 0:02:29.8]} 20... Bg6 {[%clk 0:01:13.6]} 21.
Rae1 {[%clk 0:02:23.1]} 21... h5 {[%clk 0:01:08.4]} 22. h3 {[%clk 0:02:03.2]}
22... a4 {[%clk 0:01:04.6]} 23. Bf1 {[%clk 0:01:56.7]} 23... Qb3 {[%clk
0:00:50.2]} 24. Bg2 {[%clk 0:01:32.1]} 24... Rc8 {[%clk 0:00:38.3]} 25. h4
{[%clk 0:01:22.6]} 25... Qxc4 {[%clk 0:00:31.6]} 26. Rc1 {[%clk 0:01:21]} 26...
Qa2 {[%clk 0:00:13.4]} 27. Rexc5 {[%clk 0:01:14.8]} 27... Rxc5 {[%clk
0:00:09.7]} 28. Rxc5 {[%clk 0:01:15.7]} 28... d3 {[%clk 0:00:10.4]} 29. Rc1
{[%clk 0:01:12.2]} 29... Ng4 {[%clk 0:00:10.2]} 30. Qb4 {[%clk 0:00:56.4]} 30...
Qe6 {[%clk 0:00:07.6]} 31. Qf4 {[%clk 0:00:53.5]} 31... Qe2 {[%clk 0:00:06.8]}
32. Bf1 {[%clk 0:00:48.7]} 32... Qe6 {[%clk 0:00:05]} 33. Qb8+ {[%clk
0:00:45.3]} 33... Kh7 {[%clk 0:00:04.9]} 34. Rc8 {[%clk 0:00:45.3]} 34... Be4
{[%clk 0:00:03.8]} 35. Rh8+ {[%clk 0:00:38.2]} 35... Kg6 {[%clk 0:00:03.6]} 36.
Qf4 {[%clk 0:00:38.8]} 36... f6 {[%clk 0:00:03.5]} 37. Rd8 {[%clk 0:00:37.2]}
37... Qc6 {[%clk 0:00:03.4]} 38. Bxd3 {[%clk 0:00:24.5]} 38... Bxd3 {[%clk
0:00:03.2]} 39. Rxd3 {[%clk 0:00:25]} 39... Ne5 {[%clk 0:00:03.6]} 40. Re3
{[%clk 0:00:23.4]} 40... Qc2 {[%clk 0:00:03.6]} 41. Qe4+ {[%clk 0:00:22.8]}
41... Qxe4 {[%clk 0:00:04.1]} 42. Rxe4 {[%clk 0:00:23.7]} 42... Kf5 {[%clk
0:00:05]} 43. Rxa4 {[%clk 0:00:23.3]} 43... Nd3 {[%clk 0:00:05]} 44. Ra7 {[%clk
0:00:22.1]} 44... Ne5 {[%clk 0:00:04.3]} 45. Rxg7 {[%clk 0:00:20.3]} 1-0

[Event "*** Titled Tuesday Blitz"]
[Site "Chess.com"]
[Date "2021.02.16"]
[Round "1"]
[White "drragnar1"]
[Black "bascheyaro"]
[Result "1-0"]
[WhiteElo "2399"]
[BlackElo "2694"]
[TimeControl "180+1"]
[EndTime "10:07:39 PST"]
[Termination "drragnar1 won on time"]

1. c4 {[%clk 0:02:57.2]} 1... e5 {[%clk 0:01:33.1]} 2. g3 {[%clk 0:02:52.4]}
2... Nc6 {[%clk 0:01:33]} 3. Bg2 {[%clk 0:02:52.4]} 3... g6 {[%clk 0:01:33.9]}
4. Nc3 {[%clk 0:02:52.7]} 4... Bg7 {[%clk 0:01:34.5]} 5. d3 {[%clk 0:02:52.8]}
5... d6 {[%clk 0:01:35.1]} 6. Nf3 {[%clk 0:02:53.3]} 6... f5 {[%clk 0:01:35.5]}
7. O-O {[%clk 0:02:52.1]} 7... Nf6 {[%clk 0:01:36]} 8. Rb1 {[%clk 0:02:51.5]}
8... O-O {[%clk 0:01:36.4]} 9. b4 {[%clk 0:02:51.1]} 9... h6 {[%clk 0:01:37]}
10. b5 {[%clk 0:02:51.2]} 10... Ne7 {[%clk 0:01:37.4]} 11. a4 {[%clk 0:02:51.6]}
11... Kh7 {[%clk 0:01:37.8]} 12. Ba3 {[%clk 0:02:51.7]} 12... Be6 {[%clk
0:01:37.8]} 13. a5 {[%clk 0:02:29.2]} 13... e4 {[%clk 0:01:37.6]} 14. Ne1 {[%clk
0:02:23.8]} 14... Ng4 {[%clk 0:01:36.8]} 15. Qc1 {[%clk 0:02:08.2]} 15... d5
{[%clk 0:01:05.2]} 16. cxd5 {[%clk 0:01:40.6]} 16... Bxc3 {[%clk 0:01:04.3]} 17.
dxe6 {[%clk 0:01:21.7]} 17... Bxa5 {[%clk 0:01:03.2]} 18. dxe4 {[%clk
0:01:14.7]} 18... fxe4 {[%clk 0:01:02.8]} 19. Bxe4 {[%clk 0:01:13.6]} 19... Bb6
{[%clk 0:00:52.9]} 20. Nf3 {[%clk 0:00:54.9]} 20... Rf6 {[%clk 0:00:50.7]} 21.
h3 {[%clk 0:00:44.6]} 21... Rxe6 {[%clk 0:00:46.9]} 22. Bxb7 {[%clk 0:00:41.3]}
22... Rb8 {[%clk 0:00:45.3]} 23. hxg4 {[%clk 0:00:35.8]} 23... Rxb7 {[%clk
0:00:45.1]} 24. Rd1 {[%clk 0:00:31.6]} 24... Qe8 {[%clk 0:00:45.2]} 25. g5
{[%clk 0:00:30]} 25... Rxe2 {[%clk 0:00:43.2]} 26. Bc5 {[%clk 0:00:26.4]} 26...
Qf7 {[%clk 0:00:37.1]} 27. Kg2 {[%clk 0:00:18.9]} 27... Bxc5 {[%clk 0:00:27.2]}
28. Qxc5 {[%clk 0:00:19.7]} 28... Nf5 {[%clk 0:00:27.6]} 29. Qc6 {[%clk
0:00:16.4]} 29... Rb6 {[%clk 0:00:20.5]} 30. Rd7 {[%clk 0:00:15.3]} 30... Ne7
{[%clk 0:00:11.7]} 31. Qc5 {[%clk 0:00:14.2]} 31... Rbe6 {[%clk 0:00:11.3]} 32.
gxh6 {[%clk 0:00:14.5]} 32... Kxh6 {[%clk 0:00:10.8]} 33. Rh1+ {[%clk 0:00:14]}
33... Kg7 {[%clk 0:00:11.3]} 34. Rh7+ {[%clk 0:00:14.3]} 34... Kxh7 {[%clk
0:00:11.1]} 35. Ng5+ {[%clk 0:00:14.9]} 35... Kg7 {[%clk 0:00:11.4]} 36. Nxf7
{[%clk 0:00:15.8]} 36... Kxf7 {[%clk 0:00:12.1]} 37. Rxc7 {[%clk 0:00:16.1]}
37... Rf6 {[%clk 0:00:11]} 38. Rxa7 {[%clk 0:00:15.6]} 38... Kf8 {[%clk
0:00:08.9]} 39. b6 {[%clk 0:00:15.3]} 39... Rb2 {[%clk 0:00:04.1]} 40. Qxe7+
{[%clk 0:00:14.6]} 1-0

[Event "*** Titled Tuesday Blitz"]
[Site "Chess.com"]
[Date "2021.02.16"]
[Round "1"]
[White "IwkooO"]
[Black "Smile2005"]
[Result "1-0"]
[WhiteElo "2643"]
[BlackElo "2344"]
[TimeControl "180+1"]
[EndTime "10:07:39 PST"]
[Termination "IwkooO won by checkmate"]

1. e4 {[%clk 0:03:00.9]} 1... d5 {[%clk 0:02:59.4]} 2. exd5 {[%clk 0:03:00.8]}
2... Nf6 {[%clk 0:02:59.9]} 3. d4 {[%clk 0:02:59.8]} 3... Nxd5 {[%clk 0:03:00]}
4. Nf3 {[%clk 0:02:59.1]} 4... Bg4 {[%clk 0:02:59]} 5. c4 {[%clk 0:02:59.1]}
5... Nb6 {[%clk 0:02:59.1]} 6. c5 {[%clk 0:02:59.6]} 6... N6d7 {[%clk 0:02:59]}
7. Nc3 {[%clk 0:02:55.3]} 7... e6 {[%clk 0:02:58.7]} 8. Be2 {[%clk 0:02:54.3]}
8... Nc6 {[%clk 0:02:58.4]} 9. Be3 {[%clk 0:02:54.4]} 9... Be7 {[%clk
0:02:58.9]} 10. h3 {[%clk 0:02:54.6]} 10... Bh5 {[%clk 0:02:57.7]} 11. O-O
{[%clk 0:02:54.9]} 11... O-O {[%clk 0:02:57.9]} 12. Qd2 {[%clk 0:02:29.5]} 12...
Nf6 {[%clk 0:02:57.5]} 13. Rfd1 {[%clk 0:02:29.5]} 13... Nb4 {[%clk 0:02:56.4]}
14. Ne5 {[%clk 0:02:27.9]} 14... Bxe2 {[%clk 0:02:54.6]} 15. Qxe2 {[%clk
0:02:28.8]} 15... Nbd5 {[%clk 0:02:54.3]} 16. f4 {[%clk 0:02:19.6]} 16... Nxe3
{[%clk 0:02:50.3]} 17. Qxe3 {[%clk 0:02:19.6]} 17... Nd5 {[%clk 0:02:51]} 18.
Nxd5 {[%clk 0:02:19.4]} 18... Qxd5 {[%clk 0:02:50.2]} 19. b3 {[%clk 0:01:51.8]}
19... Rad8 {[%clk 0:02:46.4]} 20. Rac1 {[%clk 0:01:51.9]} 20... Bf6 {[%clk
0:02:43.2]} 21. Nf3 {[%clk 0:01:46.8]} 21... g6 {[%clk 0:02:39.2]} 22. Rd2
{[%clk 0:01:39.5]} 22... Rd7 {[%clk 0:02:39.2]} 23. Rc4 {[%clk 0:01:35.8]} 23...
Rfd8 {[%clk 0:02:39.2]} 24. Kh2 {[%clk 0:01:33.9]} 24... b5 {[%clk 0:01:57.5]}
25. Rc1 {[%clk 0:01:25.9]} 25... a5 {[%clk 0:01:48]} 26. Rcd1 {[%clk 0:01:23.8]}
26... c6 {[%clk 0:01:48.1]} 27. g4 {[%clk 0:01:17.3]} 27... Ra7 {[%clk
0:01:26.4]} 28. a3 {[%clk 0:01:10.1]} 28... a4 {[%clk 0:01:24.8]} 29. b4 {[%clk
0:01:08.7]} 29... Rad7 {[%clk 0:01:24.2]} 30. Kg3 {[%clk 0:01:08.9]} 30... h5
{[%clk 0:01:05.1]} 31. Rd3 {[%clk 0:00:56.3]} 31... Qa2 {[%clk 0:01:03.1]} 32.
R1d2 {[%clk 0:00:55.9]} 32... Qa1 {[%clk 0:01:01.5]} 33. Qe4 {[%clk 0:00:53.8]}
33... Rd5 {[%clk 0:01:00.3]} 34. Rd1 {[%clk 0:00:50]} 34... Qb2 {[%clk
0:00:58.4]} 35. R1d2 {[%clk 0:00:50.3]} 35... Qa1 {[%clk 0:00:58.4]} 36. Kg2
{[%clk 0:00:27.3]} 36... R8d7 {[%clk 0:00:37.4]} 37. gxh5 {[%clk 0:00:25.9]}
37... gxh5 {[%clk 0:00:37.4]} 38. Kh2 {[%clk 0:00:15.4]} 38... Kf8 {[%clk
0:00:37.5]} 39. Qh7 {[%clk 0:00:13.5]} 39... Ke7 {[%clk 0:00:37.8]} 40. Qe4
{[%clk 0:00:12.8]} 40... Rd8 {[%clk 0:00:37.7]} 41. Qe2 {[%clk 0:00:10.4]} 41...
Rg8 {[%clk 0:00:36.9]} 42. Rd1 {[%clk 0:00:10.3]} 42... Bxd4 {[%clk 0:00:22.5]}
43. Nxd4 {[%clk 0:00:07.8]} 43... Rxd4 {[%clk 0:00:19.7]} 44. Rxa1 {[%clk
0:00:08]} 44... Rxd3 {[%clk 0:00:19.7]} 45. Qxd3 {[%clk 0:00:08.9]} 45... h4
{[%clk 0:00:18.3]} 46. Qd6+ {[%clk 0:00:09.2]} 46... Kf6 {[%clk 0:00:18.9]} 47.
Qe5+ {[%clk 0:00:09.1]} 47... Ke7 {[%clk 0:00:19.1]} 48. Rd1 {[%clk 0:00:09.7]}
48... f6 {[%clk 0:00:19.2]} 49. Qc7+ {[%clk 0:00:09.9]} 49... Kf8 {[%clk
0:00:19.3]} 50. Rd8# {[%clk 0:00:10.8]} 1-0

[Event "*** Titled Tuesday Blitz"]
[Site "Chess.com"]
[Date "2021.02.16"]
[Round "1"]
[White "ViditYT"]
[Black "beautroll"]
[Result "1-0"]
[WhiteElo "3017"]
[BlackElo "2468"]
[TimeControl "180+1"]
[EndTime "10:07:40 PST"]
[Termination "ViditYT won by resignation"]

1. c4 {[%clk 0:03:00.3]} 1... Nf6 {[%clk 0:02:59.6]} 2. Nc3 {[%clk 0:02:59.8]}
2... g6 {[%clk 0:02:58.3]} 3. g3 {[%clk 0:02:59.7]} 3... Bg7 {[%clk 0:02:58]} 4.
Bg2 {[%clk 0:03:00.3]} 4... O-O {[%clk 0:02:58.2]} 5. d4 {[%clk 0:03:00.5]} 5...
Nc6 {[%clk 0:02:57.4]} 6. Nf3 {[%clk 0:02:56.6]} 6... d5 {[%clk 0:02:56.2]} 7.
cxd5 {[%clk 0:02:51.9]} 7... Nxd5 {[%clk 0:02:57.1]} 8. O-O {[%clk 0:02:52.4]}
8... Nb6 {[%clk 0:02:56.4]} 9. d5 {[%clk 0:02:46.3]} 9... Na5 {[%clk 0:02:55.7]}
10. e4 {[%clk 0:02:46]} 10... c6 {[%clk 0:02:55.7]} 11. Bf4 {[%clk 0:02:36.5]}
11... cxd5 {[%clk 0:02:51]} 12. Nxd5 {[%clk 0:02:31.1]} 12... Nxd5 {[%clk
0:02:49.2]} 13. exd5 {[%clk 0:02:31.7]} 13... Nc4 {[%clk 0:02:47.7]} 14. b3
{[%clk 0:02:25.1]} 14... Nd6 {[%clk 0:02:46.6]} 15. Rc1 {[%clk 0:02:24.1]} 15...
Bg4 {[%clk 0:02:36]} 16. Qd2 {[%clk 0:02:07.7]} 16... Bxf3 {[%clk 0:02:25.8]}
17. Bxf3 {[%clk 0:02:08.6]} 17... a5 {[%clk 0:02:25.2]} 18. Rfe1 {[%clk
0:01:59.3]} 18... a4 {[%clk 0:02:17.3]} 19. b4 {[%clk 0:01:41]} 19... a3 {[%clk
0:01:58.1]} 20. Bg4 {[%clk 0:01:31]} 20... Ra4 {[%clk 0:01:50.6]} 21. Bd1 {[%clk
0:01:06.9]} 21... Ra8 {[%clk 0:01:43.5]} 22. h4 {[%clk 0:01:04.2]} 22... h5
{[%clk 0:01:36.4]} 23. Rc5 {[%clk 0:01:00.7]} 23... Re8 {[%clk 0:01:30.2]} 24.
Bb3 {[%clk 0:00:52.3]} 24... Qb6 {[%clk 0:01:21.9]} 25. Bc2 {[%clk 0:00:39.5]}
25... Rad8 {[%clk 0:01:04.4]} 26. Be3 {[%clk 0:00:38.5]} 26... Qa6 {[%clk
0:01:03]} 27. Bd3 {[%clk 0:00:38.7]} 27... Qa4 {[%clk 0:00:57.3]} 28. Ra5 {[%clk
0:00:38.4]} 28... Qd7 {[%clk 0:00:56.3]} 29. Rxa3 {[%clk 0:00:36.3]} 29... Nb5
{[%clk 0:00:32.5]} 30. Ra5 {[%clk 0:00:27]} 30... Nc3 {[%clk 0:00:30.2]} 31. Bb6
{[%clk 0:00:23.9]} 31... Rc8 {[%clk 0:00:27.1]} 32. Bf1 {[%clk 0:00:23.3]} 32...
e6 {[%clk 0:00:23.5]} 33. d6 {[%clk 0:00:20]} 33... Nd5 {[%clk 0:00:22.2]} 34.
Bd4 {[%clk 0:00:17.8]} 34... Bxd4 {[%clk 0:00:19.5]} 35. Qxd4 {[%clk 0:00:18.7]}
35... Qxd6 {[%clk 0:00:20.1]} 36. Rb5 {[%clk 0:00:19.2]} 36... Qc6 {[%clk
0:00:18.5]} 37. Rc5 {[%clk 0:00:18.5]} 37... Qb6 {[%clk 0:00:17.8]} 38. Rxd5
{[%clk 0:00:18.8]} 38... Qc6 {[%clk 0:00:12]} 39. Rc5 {[%clk 0:00:18.8]} 39...
Qa4 {[%clk 0:00:11.5]} 40. Bb5 {[%clk 0:00:17.5]} 40... Qxa2 {[%clk 0:00:05.6]}
41. Bxe8 {[%clk 0:00:17.4]} 41... Rxe8 {[%clk 0:00:06.5]} 42. Rec1 {[%clk
0:00:17.7]} 1-0

[Event "*** Titled Tuesday Blitz"]
[Site "Chess.com"]
[Date "2021.02.16"]
[Round "1"]
[White "LuisFSiles"]
[Black "temiksmozg"]
[Result "0-1"]
[WhiteElo "2315"]
[BlackElo "2615"]
[TimeControl "180+1"]
[EndTime "10:07:40 PST"]
[Termination "temiksmozg won on time"]

1. e4 {[%clk 0:02:49.9]} 1... c5 {[%clk 0:02:53.1]} 2. Nf3 {[%clk 0:02:45.9]}
2... e6 {[%clk 0:02:52.8]} 3. c3 {[%clk 0:02:44.3]} 3... d5 {[%clk 0:02:51.5]}
4. exd5 {[%clk 0:02:43.2]} 4... Qxd5 {[%clk 0:02:52.4]} 5. d4 {[%clk 0:02:41.5]}
5... Nf6 {[%clk 0:02:52.9]} 6. Be3 {[%clk 0:02:40]} 6... cxd4 {[%clk 0:02:37]}
7. cxd4 {[%clk 0:02:38.7]} 7... Bb4+ {[%clk 0:02:31.1]} 8. Nc3 {[%clk 0:02:36]}
8... O-O {[%clk 0:02:31.3]} 9. Bd3 {[%clk 0:02:32.8]} 9... b6 {[%clk 0:02:29.3]}
10. Qe2 {[%clk 0:02:27.5]} 10... Qa5 {[%clk 0:02:24.3]} 11. O-O {[%clk
0:02:18.8]} 11... Bxc3 {[%clk 0:02:20]} 12. bxc3 {[%clk 0:02:18]} 12... Qxc3
{[%clk 0:02:17.7]} 13. Ne5 {[%clk 0:01:59.3]} 13... Bb7 {[%clk 0:01:47.4]} 14.
Rac1 {[%clk 0:01:48.1]} 14... Qa5 {[%clk 0:01:47]} 15. Rc7 {[%clk 0:01:35.4]}
15... Qd5 {[%clk 0:01:45.3]} 16. f3 {[%clk 0:01:12.9]} 16... a5 {[%clk
0:01:29.6]} 17. Rb1 {[%clk 0:00:42.6]} 17... Ba6 {[%clk 0:01:23.7]} 18. Rxb6
{[%clk 0:00:40.6]} 18... Bxd3 {[%clk 0:01:20.6]} 19. Nxd3 {[%clk 0:00:41.5]}
19... Nbd7 {[%clk 0:01:05]} 20. Rbb7 {[%clk 0:00:39.9]} 20... Rab8 {[%clk
0:00:58.4]} 21. Nf4 {[%clk 0:00:36]} 21... Qxb7 {[%clk 0:00:51.9]} 22. Rxb7
{[%clk 0:00:35.3]} 22... Rxb7 {[%clk 0:00:52.8]} 23. Qa6 {[%clk 0:00:29.6]}
23... Rb1+ {[%clk 0:00:48.4]} 24. Kf2 {[%clk 0:00:29]} 24... Rb2+ {[%clk
0:00:47.9]} 25. Kg3 {[%clk 0:00:29.1]} 25... Nb6 {[%clk 0:00:44.5]} 26. Qxa5
{[%clk 0:00:25.1]} 26... Nfd5 {[%clk 0:00:38.3]} 27. Nxd5 {[%clk 0:00:22.7]}
27... Nxd5 {[%clk 0:00:39.2]} 28. Bc1 {[%clk 0:00:20.6]} 28... Rc2 {[%clk
0:00:39]} 29. Ba3 {[%clk 0:00:19.5]} 29... Rfc8 {[%clk 0:00:36.1]} 30. Bc5
{[%clk 0:00:18.5]} 30... h6 {[%clk 0:00:24.6]} 31. Qa6 {[%clk 0:00:18.2]} 31...
Rb8 {[%clk 0:00:23.3]} 32. Qd6 {[%clk 0:00:17.9]} 32... Rbb2 {[%clk 0:00:19]}
33. f4 {[%clk 0:00:05.2]} 33... Rxg2+ {[%clk 0:00:15.2]} 34. Kf3 {[%clk
0:00:05.4]} 34... Rbf2+ {[%clk 0:00:04.7]} 35. Ke4 {[%clk 0:00:05]} 35... Rxf4+
{[%clk 0:00:04.1]} 36. Kd3 {[%clk 0:00:04.7]} 36... Kh7 {[%clk 0:00:04]} 37. Qe5
{[%clk 0:00:03.6]} 37... Rf5 {[%clk 0:00:03.3]} 38. Qe4 {[%clk 0:00:03.3]} 38...
Rxh2 {[%clk 0:00:02.9]} 39. a4 {[%clk 0:00:03]} 39... Ra2 {[%clk 0:00:01.9]} 0-1